{"text_format":"1","workbook":"xlsx","n_sheets":5,"sheets":["Notes","Summary","ICB","Organisations","BS"],"not_rendered":{"charts":0,"images":0,"macros":1,"external_links":1,"defined_names":4,"comments":0,"pivot_tables":0},"unopened":[],"bounds":{"document_bytes":16777216,"sheet_cells":100000,"rows_first":2000,"rows_last":500,"rows_between":2000,"halvings":0,"cell_chars":16384,"cell_head_chars":4096},"cells_cut":0,"cells_raw":0,"read":"whole","date_system":"1900"}

{"sheet":"Notes","index":0,"n_rows":2,"n_cols":8,"rows_kept":2,"cut":false,"hidden":false,"merged":[[1,1,1,4]]}
[]
[null,"Post-COVID clinic Friends and Family Test (FFT) data - November 2022",null,null,null,null,null,"  Show data for:"]

{"sheet":"Summary","index":1,"n_rows":7,"n_cols":10,"rows_kept":7,"cut":false,"hidden":false,"merged":[[2,1,3,1],[2,4,2,5],[2,6,2,7],[2,8,2,9]]}
[]
[]
[null,"FFT","Number of organisations submitting","Total responses to date","Responses",null,"Percentage Positive",null,"Percentage Negative"]
[null,null,"2022-11-01","2022-11-01","2022-11-01","2022-10-27","2022-11-01","2022-10-27","2022-11-01","2022-10-27"]
[null,"Post Covid Q1",72,9036,1111,807,0.94419441944194415,0.92936802973977695,1.8901890189018902E-2,2.2304832713754646E-2]
[null,"Post Covid Q2",72,6966,728,485,0.93956043956043955,0.96082474226804127,6.043956043956044E-2,3.9175257731958762E-2]
[null,"Post Covid Q3",72,7037,897,478,0.98439241917502784,0.99581589958159,1.560758082497213E-2,4.1841004184100415E-3]

{"sheet":"ICB","index":2,"n_rows":49,"n_cols":24,"rows_kept":49,"cut":false,"hidden":false,"merged":[[3,18,4,18],[3,19,4,19],[3,20,4,20],[3,21,3,23],[2,18,2,20],[2,21,2,23],[3,2,4,2],[3,3,4,3],[3,4,4,4],[3,5,3,10],[3,11,4,11],[3,12,4,12],[3,13,4,13],[3,14,4,14],[2,0,4,0],[2,1,4,1],[2,2,2,4],[2,5,2,10],[2,11,2,14],[2,15,2,17],[3,15,3,17]]}
[]
[]
["ICB Code","ICB Name","Question 1",null,null,"Question 1",null,null,null,null,null,"Question 2",null,null,null,"Question 2",null,null,"Question 3",null,null,"Question 3"]
[null,null,"Total Responses","Percentage Positive","Percentage Negative","Breakdown of Responses",null,null,null,null,null,"Total Responses","Total Eligible","Percentage Positive","Percentage Negative","Breakdown of Responses",null,null,"Total Responses","Percentage Positive","Percentage Negative","Breakdown of Responses"]
[null,null,null,null,null,"Very Good","Good","Neither Good nor Poor","Poor","Very Poor","Don't Know",null,null,null,null,"Yes definitely","Yes to some extent","No",null,null,null,"Yes definitely","Yes to some extent","No"]
[null,"England",1111,0.94419441944194415,1.8901890189018902E-2,896,153,32,7,14,9,728,2616,0.93956043956043955,6.043956043956044E-2,614,70,44,897,0.98439241917502784,1.560758082497213E-2,865,18,14]
[null,"Selection (excluding suppressed data)",{"$f":"SUBTOTAL(9,C8:C61)","v":1111},{"$f":"IFERROR((F7+G7)/C7, \"-\")","v":0.9261926192619262},{"$f":"IFERROR((I7+J7)/C7, \"-\")","v":1.8001800180018002E-2},{"$f":"SUBTOTAL(9,F8:F61)","v":880},149,31,6,14,9,728,2616,{"$f":"IFERROR((P7+Q7)/L7, \"-\")","v":0.91346153846153844},{"$f":"IFERROR(R7/M7, \"-\")","v":1.5672782874617736E-2},598,67,41,{"$f":"SUBTOTAL(9,S8:S61)","v":897},{"$f":"IFERROR((V7+W7)/S7, \"-\")","v":0.96098104793756967},{"$f":"IFERROR(X7/S7, \"-\")","v":1.4492753623188406E-2},{"$f":"SUBTOTAL(9,V8:V61)","v":845},17,13]
["QE1","LANCASHIRE AND SOUTH CUMBRIA ICB",8,1,0,"*","*","*","*","*","*",8,0,1,0,"*","*","*",8,1,0,"*","*","*"]
["QF7","SOUTH YORKSHIRE ICB",56,0.9642857142857143,1.7857142857142856E-2,50,4,1,0,1,0,0,0,"NA","NA",0,0,0,0,"NA","NA",0,0,0]
["QGH","HEREFORDSHIRE AND WORCESTERSHIRE ICB",0,"NA","NA",0,0,0,0,0,0,0,0,"NA","NA",0,0,0,0,"NA","NA",0,0,0]
["QH8","MID AND SOUTH ESSEX ICB",0,"NA","NA",0,0,0,0,0,0,0,0,"NA","NA",0,0,0,0,"NA","NA",0,0,0]
["QHG","BEDFORDSHIRE, LUTON AND MILTON KEYNES ICB",46,0.97826086956521741,2.1739130434782608E-2,32,13,0,0,1,0,46,139,0.97826086956521741,2.1739130434782608E-2,37,8,1,46,1,0,44,2,0]
["QHL","BIRMINGHAM AND SOLIHULL ICB",53,0.96226415094339623,1.8867924528301886E-2,50,1,1,0,1,0,50,0,0.98,0.02,47,2,1,52,0.96153846153846156,3.8461538461538464E-2,50,0,2]
["QHM","NORTH EAST AND NORTH CUMBRIA ICB",52,0.98076923076923073,0,45,6,1,0,0,0,47,372,1,0,42,5,0,47,1,0,44,3,0]
["QJ2","DERBY AND DERBYSHIRE ICB",0,"NA","NA",0,0,0,0,0,0,0,0,"NA","NA",0,0,0,0,"NA","NA",0,0,0]
["QJG","SUFFOLK AND NORTH EAST ESSEX ICB",369,0.94308943089430897,1.8970189701897018E-2,302,46,10,2,5,4,202,380,0.85643564356435642,0.14356435643564355,162,11,29,369,0.98373983739837401,1.6260162601626018E-2,363,0,6]
["QJK","DEVON ICB",0,"NA","NA",0,0,0,0,0,0,0,0,"NA","NA",0,0,0,0,"NA","NA",0,0,0]
["QJM","LINCOLNSHIRE ICB",22,0.86363636363636365,4.5454545454545456E-2,17,2,2,0,1,0,22,242,0.95454545454545459,4.5454545454545456E-2,15,6,1,22,0.95454545454545459,4.5454545454545456E-2,15,6,1]
["QK1","LEICESTER, LEICESTERSHIRE AND RUTLAND ICB",0,"NA","NA",0,0,0,0,0,0,0,111,"NA","NA",0,0,0,0,"NA","NA",0,0,0]
["QKK","SOUTH EAST LONDON ICB",3,"*","*","*","*","*","*","*","*",3,67,"*","*","*","*","*",3,"*","*","*","*","*"]
["QKS","KENT AND MEDWAY ICB",0,"NA","NA",0,0,0,0,0,0,0,0,"NA","NA",0,0,0,0,"NA","NA",0,0,0]
["QM7","HERTFORDSHIRE AND WEST ESSEX ICB",8,1,0,6,2,0,0,0,0,8,0,1,0,6,2,0,8,1,0,8,0,0]
["QMF","NORTH EAST LONDON ICB",94,0.88297872340425532,2.1276595744680851E-2,62,21,7,1,1,2,24,118,0.91666666666666663,8.3333333333333329E-2,16,6,2,24,0.91666666666666663,8.3333333333333329E-2,21,1,2]
["QMJ","NORTH CENTRAL LONDON ICB",0,"NA","NA",0,0,0,0,0,0,0,0,"NA","NA",0,0,0,0,"NA","NA",0,0,0]
["QMM","NORFOLK AND WAVENEY ICB",15,0.93333333333333335,0,9,5,1,0,0,0,5,0,1,0,5,0,0,6,1,0,6,0,0]
["QNC","STAFFORDSHIRE AND STOKE-ON-TRENT ICB",18,0.94444444444444442,5.5555555555555552E-2,15,2,0,0,1,0,18,0,0.94444444444444442,5.5555555555555552E-2,14,3,1,18,0.94444444444444442,5.5555555555555552E-2,17,0,1]
["QNQ","FRIMLEY ICB",0,"NA","NA",0,0,0,0,0,0,0,0,"NA","NA",0,0,0,0,"NA","NA",0,0,0]
["QNX","SUSSEX ICB",8,1,0,5,3,0,0,0,0,7,7,1,0,7,0,0,7,1,0,7,0,0]
["QOC","SHROPSHIRE, TELFORD AND WREKIN ICB",0,"NA","NA",0,0,0,0,0,0,0,0,"NA","NA",0,0,0,0,"NA","NA",0,0,0]
["QOP","GREATER MANCHESTER ICB",9,0.88888888888888884,0,5,3,0,0,0,1,4,71,"*","*",3,1,0,4,"*","*",4,0,0]
["QOQ","HUMBER AND NORTH YORKSHIRE ICB",4,"*","*","*","*","*","*","*","*",4,13,"*","*","*","*","*",4,"*","*","*","*","*"]
["QOX","BATH AND NORTH EAST SOMERSET, SWINDON AND WILTSHIRE ICB",17,0.94117647058823528,5.8823529411764705E-2,12,4,0,1,0,0,17,17,1,0,17,0,0,17,1,0,17,0,0]
["QPM","NORTHAMPTONSHIRE ICB",24,0.91666666666666663,8.3333333333333329E-2,20,2,0,0,2,0,24,24,1,0,23,1,0,24,1,0,24,0,0]
["QR1","GLOUCESTERSHIRE ICB",38,0.94736842105263153,0,34,2,1,0,0,1,37,0,0.97297297297297303,2.7027027027027029E-2,33,3,1,36,1,0,36,0,0]
["QRL","HAMPSHIRE AND ISLE OF WIGHT ICB",17,1,0,9,8,0,0,0,0,17,844,0.94117647058823528,5.8823529411764705E-2,11,5,1,17,1,0,17,0,0]
["QRV","NORTH WEST LONDON ICB",1,"*","*","*","*","*","*","*","*",1,74,"*","*","*","*","*",1,"*","*","*","*","*"]
["QSL","SOMERSET ICB",0,"NA","NA",0,0,0,0,0,0,0,0,"NA","NA",0,0,0,0,"NA","NA",0,0,0]
["QT1","NOTTINGHAM AND NOTTINGHAMSHIRE ICB",3,"*","*","*","*","*","*","*","*",3,20,"*","*","*","*","*",3,"*","*","*","*","*"]
["QT6","CORNWALL AND THE ISLES OF SCILLY ICB",30,1,0,25,5,0,0,0,0,28,0,1,0,27,1,0,28,1,0,28,0,0]
["QU9","BUCKINGHAMSHIRE, OXFORDSHIRE AND BERKSHIRE WEST ICB",3,"*","*","*","*","*","*","*","*",3,40,"*","*","*","*","*",3,"*","*","*","*","*"]
["QUA","BLACK COUNTRY ICB",67,0.9850746268656716,0,62,4,1,0,0,0,49,0,1,0,49,0,0,49,1,0,49,0,0]
["QUE","CAMBRIDGESHIRE AND PETERBOROUGH ICB",23,0.95652173913043481,0,16,6,1,0,0,0,23,45,1,0,16,7,0,23,1,0,20,3,0]
["QUY","BRISTOL, NORTH SOMERSET AND SOUTH GLOUCESTERSHIRE ICB",0,"NA","NA",0,0,0,0,0,0,0,0,"NA","NA",0,0,0,0,"NA","NA",0,0,0]
["QVV","DORSET ICB",10,0.2,0.2,1,1,5,1,1,1,10,0,0.6,0.4,1,5,4,10,0.9,0.1,7,2,1]
["QWE","SOUTH WEST LONDON ICB",25,0.96,0.04,20,4,0,1,0,0,24,0,1,0,23,1,0,24,1,0,24,0,0]
["QWO","WEST YORKSHIRE ICB",26,1,0,26,0,0,0,0,0,26,0,1,0,26,0,0,26,1,0,26,0,0]
["QWU","COVENTRY AND WARWICKSHIRE ICB",15,1,0,13,2,0,0,0,0,18,22,1,0,18,0,0,18,1,0,18,0,0]
["QXU","SURREY HEARTLANDS ICB",0,"NA","NA",0,0,0,0,0,0,0,10,"NA","NA",0,0,0,0,"NA","NA",0,0,0]
["QYG","CHESHIRE AND MERSEYSIDE ICB",47,1,0,44,3,0,0,0,0,0,0,"NA","NA",0,0,0,0,"NA","NA",0,0,0]

{"sheet":"Organisations","index":3,"n_rows":79,"n_cols":33,"rows_kept":79,"cut":false,"hidden":false,"merged":[[3,16,3,18],[3,19,4,19],[3,20,4,20],[3,21,4,21],[3,22,3,24],[2,16,2,18],[2,19,2,21],[2,22,2,24],[2,25,3,32],[3,3,4,3],[3,4,4,4],[3,5,4,5],[3,6,3,11],[3,12,4,12],[3,13,4,13],[2,0,4,0],[2,1,4,1],[2,2,4,2],[2,3,2,5],[2,6,2,11],[2,12,2,15],[3,14,4,14],[3,15,4,15]]}
[]
[]
["ICB Code","Trust Code","Trust Name","Question 1",null,null,"Question 1",null,null,null,null,null,"Question 2",null,null,null,"Question 2",null,null,"Question 3",null,null,"Question 3",null,null,"Mode of Collection - Question 1"]
[null,null,null,"Total Responses","Percentage Positive","Percentage Negative","Breakdown of Responses",null,null,null,null,null,"Total Responses","Total Eligible","Percentage Positive","Percentage Negative","Breakdown of Responses",null,null,"Total Responses","Percentage Positive","Percentage Negative","Breakdown of Responses"]
[null,null,null,null,null,null,"Very Good","Good","Neither Good nor Poor","Poor","Very Poor","Don't Know",null,null,null,null,"Yes definitely","Yes to some extent","No",null,null,null,"Yes definitely","Yes to some extent","No","SMS","Smartphone","Smartphone After","Paper","Paper After","Telephone","Online","Other"]
[null,null,"England",1111,0.94419441944194415,1.8901890189018902E-2,896,153,32,7,14,9,728,2616,0.93956043956043955,6.043956043956044E-2,614,70,44,897,0.98439241917502784,1.560758082497213E-2,865,18,14,31,32,8,184,46,40,770,0]
[null,null,"Selection (excluding suppressed data)",{"$f":"SUBTOTAL(9,D8:D886)","v":1111},{"$f":"IFERROR((G7+H7)/SUM(G7:L7), \"-\")","v":0.94461859979101359},{"$f":"IFERROR((J7+K7)/SUM(G7:L7), \"-\")","v":1.9853709508881923E-2},{"$f":"SUBTOTAL(9,G8:G886)","v":782},122,26,6,13,8,728,2616,{"$f":"IFERROR((Q7+R7)/SUM(Q7:S7), \"-\")","v":0.93915756630265212},{"$f":"IFERROR(S7/SUM(Q7:S7), \"-\")","v":6.0842433697347896E-2},{"$f":"SUBTOTAL(9,Q8:Q886)","v":552},{"$f":"SUBTOTAL(9,R8:R886)","v":50},{"$f":"SUBTOTAL(9,S8:S886)","v":39},{"$f":"SUBTOTAL(9,T8:T886)","v":897},{"$f":"IFERROR((W7+X7)/SUM(W7:Y7), \"-\")","v":0.98732718894009219},{"$f":"IFERROR(Y7/SUM(W7:Y7), \"-\")","v":1.2672811059907835E-2},{"$f":"SUBTOTAL(9,W8:W886)","v":841},16,11,18,11,8,141,45,40,694,0]
["QE1","RW5","LANCASHIRE & SOUTH CUMBRIA NHS FOUNDATION TRUST",8,1,0,"*","*","*","*","*","*",8,0,1,0,"*","*","*",8,1,0,8,0,0,"*","*","*","*","*","*","*","*"]
["QF7","RXE","ROTHERHAM DONCASTER AND SOUTH HUMBER NHS FOUNDATION TRUST",1,"*","*","*","*","*","*","*","*",0,0,"NA","NA",0,0,0,0,"NA","NA",0,0,0,"*","*","*","*","*","*","*","*"]
["QF7","RHQ","SHEFFIELD TEACHING HOSPITALS NHS FOUNDATION TRUST",0,"NA","NA",0,0,0,0,0,0,0,0,"NA","NA",0,0,0,0,"NA","NA",0,0,0,0,0,0,0,0,0,0,0]
["QF7","RFR","THE ROTHERHAM NHS FOUNDATION TRUST",55,0.98181818181818181,0,"*","*","*","*","*","*",0,0,"NA","NA",0,0,0,0,"NA","NA",0,0,0,"*","*","*","*","*","*","*","*"]
["QHG","RD8","MILTON KEYNES UNIVERSITY HOSPITAL NHS FOUNDATION TRUST",46,0.97826086956521741,2.1739130434782608E-2,32,13,0,0,1,0,46,139,0.97826086956521741,2.1739130434782608E-2,37,8,1,46,1,0,44,2,0,0,0,0,0,0,0,46,0]
["QHL","RYW","BIRMINGHAM COMMUNITY HEALTHCARE NHS FOUNDATION TRUST",53,0.96226415094339623,1.8867924528301886E-2,50,1,1,0,1,0,50,0,0.98,0.02,47,2,1,52,0.96153846153846156,3.8461538461538464E-2,50,0,2,0,0,0,20,0,0,33,0]
["QHM","RXP","COUNTY DURHAM AND DARLINGTON NHS FOUNDATION TRUST",0,"NA","NA",0,0,0,0,0,0,0,0,"NA","NA",0,0,0,0,"NA","NA",0,0,0,0,0,0,0,0,0,0,0]
["QHM","RR7","GATESHEAD HEALTH NHS FOUNDATION TRUST",0,"NA","NA",0,0,0,0,0,0,0,4,"NA","NA",0,0,0,0,"NA","NA",0,0,0,0,0,0,0,0,0,0,0]
["QHM","RNN","NORTH CUMBRIA INTEGRATED CARE NHS FOUNDATION TRUST",3,"*","*","*","*","*","*","*","*",3,14,"*","*","*","*","*",3,"*","*","*","*","*","*","*","*","*","*","*","*","*"]
["QHM","RVW","NORTH TEES AND HARTLEPOOL NHS FOUNDATION TRUST",4,"*","*","*","*","*","*","*","*",0,262,"NA","NA",0,0,0,0,"NA","NA",0,0,0,"*","*","*","*","*","*","*","*"]
["QHM","RTF","NORTHUMBRIA HEALTHCARE NHS FOUNDATION TRUST",10,1,0,9,1,0,0,0,0,9,54,1,0,8,1,0,9,1,0,7,2,0,10,0,0,0,0,0,0,0]
["QHM","RTR","SOUTH TEES HOSPITALS NHS FOUNDATION TRUST",1,"*","*","*","*","*","*","*","*",1,0,"*","*","*","*","*",1,"*","*","*","*","*","*","*","*","*","*","*","*","*"]
["QHM","R0B","SOUTH TYNESIDE AND SUNDERLAND NHS FOUNDATION TRUST",3,"*","*","*","*","*","*","*","*",3,0,"*","*","*","*","*",3,"*","*","*","*","*","*","*","*","*","*","*","*","*"]
["QHM","RTD","THE NEWCASTLE UPON TYNE HOSPITALS NHS FOUNDATION TRUST",31,1,0,29,2,0,0,0,0,31,38,1,0,30,1,0,31,1,0,31,0,0,0,0,0,31,0,0,0,0]
["QJ2","RY8","DERBYSHIRE COMMUNITY HEALTH SERVICES NHS FOUNDATION TRUST",0,"NA","NA",0,0,0,0,0,0,0,0,"NA","NA",0,0,0,0,"NA","NA",0,0,0,0,0,0,0,0,0,0,0]
["QJG","RDE","EAST SUFFOLK AND NORTH ESSEX NHS FOUNDATION TRUST",36,0.88888888888888884,2.7777777777777776E-2,18,14,2,0,1,1,36,47,0.91666666666666663,8.3333333333333329E-2,22,11,3,36,0.94444444444444442,5.5555555555555552E-2,34,0,2,0,0,0,0,0,0,36,0]
["QJG","NQA","PROVIDE",333,0.94894894894894899,1.8018018018018018E-2,284,32,8,2,4,3,166,333,0.84337349397590367,0.15662650602409639,140,0,26,333,0.98798798798798804,1.2012012012012012E-2,329,0,4,0,0,0,0,0,0,333,0]
["QJK","NR5","LIVEWELL SOUTHWEST",0,"NA","NA",0,0,0,0,0,0,0,0,"NA","NA",0,0,0,0,"NA","NA",0,0,0,0,0,0,0,0,0,0,0]
["QJM","RY5","LINCOLNSHIRE COMMUNITY HEALTH SERVICES NHS TRUST",22,0.86363636363636365,4.5454545454545456E-2,17,2,2,0,1,0,22,242,0.95454545454545459,4.5454545454545456E-2,15,6,1,22,0.95454545454545459,4.5454545454545456E-2,15,6,1,0,0,0,0,0,22,0,0]
["QK1","RWE","UNIVERSITY HOSPITALS OF LEICESTER NHS TRUST",0,"NA","NA",0,0,0,0,0,0,0,111,"NA","NA",0,0,0,0,"NA","NA",0,0,0,0,0,0,0,0,0,0,0]
["QKK","RJ1","GUY'S AND ST THOMAS' NHS FOUNDATION TRUST",2,"*","*","*","*","*","*","*","*",2,67,"*","*","*","*","*",2,"*","*","*","*","*","*","*","*","*","*","*","*","*"]
["QKK","RJZ","KING'S COLLEGE HOSPITAL NHS FOUNDATION TRUST",1,"*","*","*","*","*","*","*","*",1,0,"*","*","*","*","*",1,"*","*","*","*","*","*","*","*","*","*","*","*","*"]
["QM7","RY4","HERTFORDSHIRE COMMUNITY NHS TRUST",8,1,0,6,2,0,0,0,0,8,0,1,0,6,2,0,8,1,0,8,0,0,0,0,8,0,0,0,0,0]
["QMF","RF4","BARKING, HAVERING AND REDBRIDGE UNIVERSITY HOSPITALS NHS TRUST",69,0.86956521739130432,2.8985507246376812E-2,47,13,5,1,1,2,2,0,"*","*","*","*","*",2,"*","*","*","*","*",0,0,0,0,0,0,69,0]
["QMF","RWK","EAST LONDON NHS FOUNDATION TRUST",0,"NA","NA",0,0,0,0,0,0,0,118,"NA","NA",0,0,0,0,"NA","NA",0,0,0,0,0,0,0,0,0,0,0]
["QMF","RQX","HOMERTON HEALTHCARE NHS FOUNDATION TRUST",22,0.90909090909090906,0,"*","*","*","*","*","*",22,0,1,0,"*","*","*",22,1,0,21,1,0,"*","*","*","*","*","*","*","*"]
["QMF","Y05455","NELFT OOH",3,"*","*","*","*","*","*","*","*",0,0,"NA","NA",0,0,0,0,"NA","NA",0,0,0,"*","*","*","*","*","*","*","*"]
["QMM","RY3","NORFOLK COMMUNITY HEALTH AND CARE NHS TRUST",15,0.93333333333333335,0,9,5,1,0,0,0,5,0,1,0,5,0,0,6,1,0,6,0,0,0,0,0,0,0,0,15,0]
["QNC","RRE","MIDLANDS PARTNERSHIP NHS FOUNDATION TRUST",18,0.94444444444444442,5.5555555555555552E-2,15,2,0,0,1,0,18,0,0.94444444444444442,5.5555555555555552E-2,14,3,1,18,0.94444444444444442,5.5555555555555552E-2,17,0,1,0,0,0,0,0,18,0,0]
["QNX","RXC","EAST SUSSEX HEALTHCARE NHS TRUST",1,"*","*","*","*","*","*","*","*",0,0,"NA","NA",0,0,0,0,"NA","NA",0,0,0,"*","*","*","*","*","*","*","*"]
["QNX","RDR","SUSSEX COMMUNITY NHS FOUNDATION TRUST",7,1,0,"*","*","*","*","*","*",7,7,1,0,"*","*","*",7,1,0,7,0,0,"*","*","*","*","*","*","*","*"]
["QOC","R1D","SHROPSHIRE COMMUNITY HEALTH NHS TRUST",0,"NA","NA",0,0,0,0,0,0,0,0,"NA","NA",0,0,0,0,"NA","NA",0,0,0,0,0,0,0,0,0,0,0]
["QOP","RMC","BOLTON NHS FOUNDATION TRUST",3,"*","*","*","*","*","*","*","*",0,0,"NA","NA",0,0,0,0,"NA","NA",0,0,0,"*","*","*","*","*","*","*","*"]
["QOP","R0A","MANCHESTER UNIVERSITY NHS FOUNDATION TRUST",2,"*","*","*","*","*","*","*","*",0,51,"NA","NA",0,0,0,0,"NA","NA",0,0,0,"*","*","*","*","*","*","*","*"]
["QOP","RWJ","STOCKPORT NHS FOUNDATION TRUST",4,"*","*","*","*","*","*","*","*",4,0,"*","*","*","*","*",4,"*","*","*","*","*","*","*","*","*","*","*","*","*"]
["QOP","RMP","TAMESIDE AND GLOSSOP INTEGRATED CARE NHS FOUNDATION TRUST",0,"NA","NA",0,0,0,0,0,0,0,20,"NA","NA",0,0,0,0,"NA","NA",0,0,0,0,0,0,0,0,0,0,0]
["QOP","RRF","WRIGHTINGTON, WIGAN AND LEIGH NHS FOUNDATION TRUST",0,"NA","NA",0,0,0,0,0,0,0,0,"NA","NA",0,0,0,0,"NA","NA",0,0,0,0,0,0,0,0,0,0,0]
["QOQ","NNF","CITY HEALTH CARE PARTNERSHIP CIC",4,"*","*","*","*","*","*","*","*",4,0,"*","*","*","*","*",4,"*","*","*","*","*","*","*","*","*","*","*","*","*"]
["QOQ","RJL","NORTHERN LINCOLNSHIRE AND GOOLE NHS FOUNDATION TRUST",0,"NA","NA",0,0,0,0,0,0,0,0,"NA","NA",0,0,0,0,"NA","NA",0,0,0,0,0,0,0,0,0,0,0]
["QOQ","RCB","YORK AND SCARBOROUGH TEACHING HOSPITALS NHS FOUNDATION TRUST",0,"NA","NA",0,0,0,0,0,0,0,13,"NA","NA",0,0,0,0,"NA","NA",0,0,0,0,0,0,0,0,0,0,0]
["QOX","AXG","WILTSHIRE HEALTH & CARE",17,0.94117647058823528,5.8823529411764705E-2,12,4,0,1,0,0,17,17,1,0,17,0,0,17,1,0,17,0,0,2,9,0,1,5,0,0,0]
["QPM","RP1","NORTHAMPTONSHIRE HEALTHCARE NHS FOUNDATION TRUST",24,0.91666666666666663,8.3333333333333329E-2,20,2,0,0,2,0,24,24,1,0,23,1,0,24,1,0,24,0,0,0,0,0,0,24,0,0,0]
["QR1","RTQ","GLOUCESTERSHIRE HEALTH AND CARE NHS FOUNDATION TRUST",38,0.94736842105263153,0,34,2,1,0,0,1,37,0,0.97297297297297303,2.7027027027027029E-2,33,3,1,36,1,0,36,0,0,0,0,0,0,0,0,38,0]
["QRL","R1C","SOLENT NHS TRUST",0,"NA","NA",0,0,0,0,0,0,0,0,"NA","NA",0,0,0,0,"NA","NA",0,0,0,0,0,0,0,0,0,0,0]
["QRL","RW1","SOUTHERN HEALTH NHS FOUNDATION TRUST",17,1,0,9,8,0,0,0,0,17,844,0.94117647058823528,5.8823529411764705E-2,11,5,1,17,1,0,17,0,0,0,0,0,0,0,0,17,0]
["QRV","RYJ","IMPERIAL COLLEGE HEALTHCARE NHS TRUST",1,"*","*","*","*","*","*","*","*",1,54,"*","*","*","*","*",1,"*","*","*","*","*","*","*","*","*","*","*","*","*"]
["QRV","R1K","LONDON NORTH WEST UNIVERSITY HEALTHCARE NHS TRUST",0,"NA","NA",0,0,0,0,0,0,0,20,"NA","NA",0,0,0,0,"NA","NA",0,0,0,0,0,0,0,0,0,0,0]
["QT1","NR3","NOTTINGHAM CITYCARE PARTNERSHIP",3,"*","*","*","*","*","*","*","*",3,20,"*","*","*","*","*",3,"*","*","*","*","*","*","*","*","*","*","*","*","*"]
["QT6","REF","ROYAL CORNWALL HOSPITALS NHS TRUST",30,1,0,25,5,0,0,0,0,28,0,1,0,27,1,0,28,1,0,28,0,0,0,2,0,0,0,0,28,0]
["QU9","RXQ","BUCKINGHAMSHIRE HEALTHCARE NHS TRUST",0,"NA","NA",0,0,0,0,0,0,0,38,"NA","NA",0,0,0,0,"NA","NA",0,0,0,0,0,0,0,0,0,0,0]
["QU9","RTH","OXFORD UNIVERSITY HOSPITALS NHS FOUNDATION TRUST",2,"*","*","*","*","*","*","*","*",2,2,"*","*","*","*","*",2,"*","*","*","*","*","*","*","*","*","*","*","*","*"]
["QU9","RHW","ROYAL BERKSHIRE NHS FOUNDATION TRUST",1,"*","*","*","*","*","*","*","*",1,0,"*","*","*","*","*",1,"*","*","*","*","*","*","*","*","*","*","*","*","*"]
["QUA","RNA","THE DUDLEY GROUP NHS FOUNDATION TRUST",67,0.9850746268656716,0,62,4,1,0,0,0,49,0,1,0,49,0,0,49,1,0,49,0,0,0,0,0,67,0,0,0,0]
["QUA","RL4","THE ROYAL WOLVERHAMPTON NHS TRUST",0,"NA","NA",0,0,0,0,0,0,0,0,"NA","NA",0,0,0,0,"NA","NA",0,0,0,0,0,0,0,0,0,0,0]
["QUA","RBK","WALSALL HEALTHCARE NHS TRUST",0,"NA","NA",0,0,0,0,0,0,0,0,"NA","NA",0,0,0,0,"NA","NA",0,0,0,0,0,0,0,0,0,0,0]
["QUE","RGT","CAMBRIDGE UNIVERSITY HOSPITALS NHS FOUNDATION TRUST",2,"*","*","*","*","*","*","*","*",2,24,"*","*","*","*","*",2,"*","*","*","*","*","*","*","*","*","*","*","*","*"]
["QUE","RT1","CAMBRIDGESHIRE AND PETERBOROUGH NHS FOUNDATION TRUST",21,0.95238095238095233,0,"*","*","*","*","*","*",21,21,1,0,"*","*","*",21,1,0,18,3,0,"*","*","*","*","*","*","*","*"]
["QVV","RDY","DORSET HEALTHCARE UNIVERSITY NHS FOUNDATION TRUST",10,0.2,0.2,1,1,5,1,1,1,10,0,0.6,0.4,1,5,4,10,0.9,0.1,7,2,1,0,0,0,0,0,0,10,0]
["QWE","RVR","EPSOM AND ST HELIER UNIVERSITY HOSPITALS NHS TRUST",11,1,0,11,0,0,0,0,0,10,0,1,0,10,0,0,10,1,0,10,0,0,0,0,0,0,11,0,0,0]
["QWE","RAX","KINGSTON HOSPITAL NHS FOUNDATION TRUST",0,"NA","NA",0,0,0,0,0,0,0,0,"NA","NA",0,0,0,0,"NA","NA",0,0,0,0,0,0,0,0,0,0,0]
["QWE","RJ7","ST GEORGE'S UNIVERSITY HOSPITALS NHS FOUNDATION TRUST",14,0.9285714285714286,7.1428571428571425E-2,9,4,0,1,0,0,14,0,1,0,13,1,0,14,1,0,14,0,0,0,0,0,0,0,0,14,0]
["QWO","RCF","AIREDALE NHS FOUNDATION TRUST",0,"NA","NA",0,0,0,0,0,0,0,0,"NA","NA",0,0,0,0,"NA","NA",0,0,0,0,0,0,0,0,0,0,0]
["QWO","RAE","BRADFORD TEACHING HOSPITALS NHS FOUNDATION TRUST",0,"NA","NA",0,0,0,0,0,0,0,0,"NA","NA",0,0,0,0,"NA","NA",0,0,0,0,0,0,0,0,0,0,0]
["QWO","RY6","LEEDS COMMUNITY HEALTHCARE NHS TRUST",9,1,0,9,0,0,0,0,0,9,0,1,0,9,0,0,9,1,0,9,0,0,0,0,0,0,3,0,6,0]
["QWO","RXF","MID YORKSHIRE HOSPITALS NHS TRUST",17,1,0,17,0,0,0,0,0,17,0,1,0,17,0,0,17,1,0,17,0,0,0,0,0,0,2,0,15,0]
["QWU","RLT","GEORGE ELIOT HOSPITAL NHS TRUST",0,"NA","NA",0,0,0,0,0,0,0,0,"NA","NA",0,0,0,0,"NA","NA",0,0,0,0,0,0,0,0,0,0,0]
["QWU","RJC","SOUTH WARWICKSHIRE UNIVERSITY NHS FOUNDATION TRUST",15,1,0,13,2,0,0,0,0,18,12,1,0,18,0,0,18,1,0,18,0,0,0,0,0,15,0,0,0,0]
["QWU","RKB","UNIVERSITY HOSPITALS COVENTRY AND WARWICKSHIRE NHS TRUST",0,"NA","NA",0,0,0,0,0,0,0,10,"NA","NA",0,0,0,0,"NA","NA",0,0,0,0,0,0,0,0,0,0,0]
["QXU","NDJ","FIRST COMMUNITY HEALTH AND CARE CIC",0,"NA","NA",0,0,0,0,0,0,0,10,"NA","NA",0,0,0,0,"NA","NA",0,0,0,0,0,0,0,0,0,0,0]
["QXU","RA2","ROYAL SURREY COUNTY HOSPITAL NHS FOUNDATION TRUST",0,"NA","NA",0,0,0,0,0,0,0,0,"NA","NA",0,0,0,0,"NA","NA",0,0,0,0,0,0,0,0,0,0,0]
["QYG","RJN","EAST CHESHIRE NHS TRUST",6,1,0,5,1,0,0,0,0,0,0,"NA","NA",0,0,0,0,"NA","NA",0,0,0,6,0,0,0,0,0,0,0]
["QYG","RW4","MERSEY CARE NHS FOUNDATION TRUST",41,1,0,39,2,0,0,0,0,0,0,"NA","NA",0,0,0,0,"NA","NA",0,0,0,0,0,0,7,0,0,34,0]

{"sheet":"BS","index":4,"n_rows":73,"n_cols":59,"rows_kept":73,"cut":false,"hidden":true,"merged":[]}
[null,"Sort","Region (LO) Code","Region (LO) name","Trust code","Trust name","Site Code","Site Name",null,"Sort Lists:","Sort range…","Sort range…","Sort range…","Reference Region List:","Code…","Name…","Linked Region List:","Code…","Name…","Reference Lists:","Code…","Code…","Name…","Code…","Name…","Trusts Linked Lists:","Code…","Name…","Sites Linked Lists:",null,null,null,null,"CSV Headers"]
["Region (LO)",1,1,1,"-","-","-","-",null,null,"ICB Code","ICB Code","ICB Code",null,"QE1","LANCASHIRE AND SOUTH CUMBRIA ICB",null,"QE1","LANCASHIRE AND SOUTH CUMBRIA ICB",null,"QE1","RW5","LANCASHIRE & SOUTH CUMBRIA NHS FOUNDATION TRUST",null,null,null,"AXG","AIREDALE NHS FOUNDATION TRUST",null,null,null,null,null,"Breakdown","STP Code","Trust Code","Trust Name","Q1 - Total Responses","Q1 - Percentage Positive","Q1 - Percentage Negative","Q1 - Very Good","Q1 - Good","Q1 - Neither Good nor Poor","Q1 - Poor","Q1 - Very Poor","Q1 - Don't Know","Q2 - Total Responses","Q2 - Total Eligible","Q2 - Percentage Positive","Q2 - Percentage Negative","Q2 - Yes definitely","Q2 - Yes to some extent","Q2 - No","Q3 - Total Responses","Q3 - Percentage Positive","Q3 - Percentage Negative","Q3 - Yes definitely","Q3 - Yes to some extent","Q3 - No"]
["Trusts",1,1,1,1,1,"-","-",null,null,"ICB Name","Organisation Code","Trust Code",null,"QF7","SOUTH YORKSHIRE ICB",null,"QF7","SOUTH YORKSHIRE ICB",null,"QF7","RXE","ROTHERHAM DONCASTER AND SOUTH HUMBER NHS FOUNDATION TRUST",null,null,null,"NDJ","BARKING, HAVERING AND REDBRIDGE UNIVERSITY HOSPITALS NHS TRUST"]
["Site",1,1,1,1,1,1,1,null,null,"Total Responses - Q1","Organisation Name","Trust Name",null,"QGH","HEREFORDSHIRE AND WORCESTERSHIRE ICB",null,"QGH","HEREFORDSHIRE AND WORCESTERSHIRE ICB",null,"QF7","RHQ","SHEFFIELD TEACHING HOSPITALS NHS FOUNDATION TRUST",null,null,null,"NNF","BIRMINGHAM COMMUNITY HEALTHCARE NHS FOUNDATION TRUST",null,null,null,null,null,"Collection Mode","STP Code","Trust Code","Trust Name","Question_Number","SMS","Smartphone","Smartphone After","Paper","Paper After","Telephone","Online","Other"]
[null,null,null,null,null,null,null,null,null,null,"Percentage Positive - Q1","Total Responses - Q1","Site Code",null,"QH8","MID AND SOUTH ESSEX ICB",null,"QH8","MID AND SOUTH ESSEX ICB",null,"QF7","RFR","THE ROTHERHAM NHS FOUNDATION TRUST",null,null,null,"NQA","BOLTON NHS FOUNDATION TRUST"]
[null,null,null,null,null,null,null,null,null,null,"Percentage Negative - Q1","Percentage Positive - Q1","Site Name",null,"QHG","BEDFORDSHIRE, LUTON AND MILTON KEYNES ICB",null,"QHG","BEDFORDSHIRE, LUTON AND MILTON KEYNES ICB",null,"QHG","RD8","MILTON KEYNES UNIVERSITY HOSPITAL NHS FOUNDATION TRUST",null,null,null,"NR3","BRADFORD TEACHING HOSPITALS NHS FOUNDATION TRUST"]
[null,null,null,null,null,null,null,null,null,null,"Very Good - Q1","Percentage Negative - Q1","Total Responses",null,"QHL","BIRMINGHAM AND SOLIHULL ICB",null,"QHL","BIRMINGHAM AND SOLIHULL ICB",null,"QHL","RYW","BIRMINGHAM COMMUNITY HEALTHCARE NHS FOUNDATION TRUST",null,null,null,"NR5","BUCKINGHAMSHIRE HEALTHCARE NHS TRUST"]
[null,null,null,null,null,null,null,null,null,null,"Good - Q1","Very Good - Q1","Total Eligible",null,"QHM","NORTH EAST AND NORTH CUMBRIA ICB",null,"QHM","NORTH EAST AND NORTH CUMBRIA ICB",null,"QHM","RXP","COUNTY DURHAM AND DARLINGTON NHS FOUNDATION TRUST",null,null,null,"R0A","CAMBRIDGE UNIVERSITY HOSPITALS NHS FOUNDATION TRUST"]
[null,null,null,null,null,null,null,null,null,null,"Neither Good nor Poor - Q1","Good - Q1","Percentage Positive",null,"QJ2","DERBY AND DERBYSHIRE ICB",null,"QJ2","DERBY AND DERBYSHIRE ICB",null,"QHM","RR7","GATESHEAD HEALTH NHS FOUNDATION TRUST",null,null,null,"R0B","CAMBRIDGESHIRE AND PETERBOROUGH NHS FOUNDATION TRUST"]
[null,null,null,null,null,null,null,null,null,null,"Poor - Q1","Neither Good nor Poor - Q1","Percentage Negative",null,"QJG","SUFFOLK AND NORTH EAST ESSEX ICB",null,"QJG","SUFFOLK AND NORTH EAST ESSEX ICB",null,"QHM","RNN","NORTH CUMBRIA INTEGRATED CARE NHS FOUNDATION TRUST",null,null,null,"R1C","CITY HEALTH CARE PARTNERSHIP CIC"]
[null,null,null,null,null,null,null,null,null,null,"Very Poor - Q1","Poor - Q1","Very Good",null,"QJK","DEVON ICB",null,"QJK","DEVON ICB",null,"QHM","RVW","NORTH TEES AND HARTLEPOOL NHS FOUNDATION TRUST",null,null,null,"R1D","COUNTY DURHAM AND DARLINGTON NHS FOUNDATION TRUST"]
[null,null,null,null,null,null,null,null,null,null,"Don't Know - Q1","Very Poor - Q1","Good",null,"QJM","LINCOLNSHIRE ICB",null,"QJM","LINCOLNSHIRE ICB",null,"QHM","RTF","NORTHUMBRIA HEALTHCARE NHS FOUNDATION TRUST",null,null,null,"R1K","DERBYSHIRE COMMUNITY HEALTH SERVICES NHS FOUNDATION TRUST"]
[null,null,null,null,null,null,null,null,null,null,"Total Responses - Q2","Don't Know - Q1","Neither Good nor Poor",null,"QK1","LEICESTER, LEICESTERSHIRE AND RUTLAND ICB",null,"QK1","LEICESTER, LEICESTERSHIRE AND RUTLAND ICB",null,"QHM","RTR","SOUTH TEES HOSPITALS NHS FOUNDATION TRUST",null,null,null,"RA2","DORSET HEALTHCARE UNIVERSITY NHS FOUNDATION TRUST"]
[null,null,null,null,null,null,null,null,null,null,"Total Eligible - Q2","Total Responses - Q2","Poor",null,"QKK","SOUTH EAST LONDON ICB",null,"QKK","SOUTH EAST LONDON ICB",null,"QHM","R0B","SOUTH TYNESIDE AND SUNDERLAND NHS FOUNDATION TRUST",null,null,null,"RAE","EAST CHESHIRE NHS TRUST"]
[null,null,null,null,null,null,null,null,null,null,"Percentage Positive - Q2","Total Eligible - Q2","Very Poor",null,"QKS","KENT AND MEDWAY ICB",null,"QKS","KENT AND MEDWAY ICB",null,"QHM","RTD","THE NEWCASTLE UPON TYNE HOSPITALS NHS FOUNDATION TRUST",null,null,null,"RAX","EAST LONDON NHS FOUNDATION TRUST"]
[null,null,null,null,null,null,null,null,null,null,"Percentage Negative - Q2","Percentage Positive - Q2","Don't Know",null,"QM7","HERTFORDSHIRE AND WEST ESSEX ICB",null,"QM7","HERTFORDSHIRE AND WEST ESSEX ICB",null,"QJ2","RY8","DERBYSHIRE COMMUNITY HEALTH SERVICES NHS FOUNDATION TRUST",null,null,null,"RBK","EAST SUFFOLK AND NORTH ESSEX NHS FOUNDATION TRUST"]
[null,null,null,null,null,null,null,null,null,null,"Yes definitely - Q2","Percentage Negative - Q2",null,null,"QMF","NORTH EAST LONDON ICB",null,"QMF","NORTH EAST LONDON ICB",null,"QJG","RDE","EAST SUFFOLK AND NORTH ESSEX NHS FOUNDATION TRUST",null,null,null,"RCB","EAST SUSSEX HEALTHCARE NHS TRUST"]
[null,null,null,null,null,null,null,null,null,null,"Yes to some extent - Q2","Yes definitely - Q2",null,null,"QMJ","NORTH CENTRAL LONDON ICB",null,"QMJ","NORTH CENTRAL LONDON ICB",null,"QJG","NQA","PROVIDE",null,null,null,"RCF","EPSOM AND ST HELIER UNIVERSITY HOSPITALS NHS TRUST"]
[null,null,null,null,null,null,null,null,null,null,"No - Q2","Yes to some extent - Q2",null,null,"QMM","NORFOLK AND WAVENEY ICB",null,"QMM","NORFOLK AND WAVENEY ICB",null,"QJK","NR5","LIVEWELL SOUTHWEST",null,null,null,"RD8","FIRST COMMUNITY HEALTH AND CARE CIC"]
[null,null,null,null,null,null,null,null,null,null,"Total Responses - Q3","No - Q2",null,null,"QNC","STAFFORDSHIRE AND STOKE-ON-TRENT ICB",null,"QNC","STAFFORDSHIRE AND STOKE-ON-TRENT ICB",null,"QJM","RY5","LINCOLNSHIRE COMMUNITY HEALTH SERVICES NHS TRUST",null,null,null,"RDE","GATESHEAD HEALTH NHS FOUNDATION TRUST"]
[null,null,null,null,null,null,null,null,null,null,"Percentage Positive - Q3","Total Responses - Q3",null,null,"QNQ","FRIMLEY ICB",null,"QNQ","FRIMLEY ICB",null,"QK1","RWE","UNIVERSITY HOSPITALS OF LEICESTER NHS TRUST",null,null,null,"RDR","GEORGE ELIOT HOSPITAL NHS TRUST"]
[null,null,null,null,null,null,null,null,null,null,"Percentage Negative - Q3","Percentage Positive - Q3",null,null,"QNX","SUSSEX ICB",null,"QNX","SUSSEX ICB",null,"QKK","RJ1","GUY'S AND ST THOMAS' NHS FOUNDATION TRUST",null,null,null,"RDY","GLOUCESTERSHIRE HEALTH AND CARE NHS FOUNDATION TRUST"]
[null,null,null,null,null,null,null,null,null,null,"Yes definitely - Q3","Percentage Negative - Q3",null,null,"QOC","SHROPSHIRE, TELFORD AND WREKIN ICB",null,"QOC","SHROPSHIRE, TELFORD AND WREKIN ICB",null,"QKK","RJZ","KING'S COLLEGE HOSPITAL NHS FOUNDATION TRUST",null,null,null,"REF","GUY'S AND ST THOMAS' NHS FOUNDATION TRUST"]
[null,null,null,null,null,null,null,null,null,null,"Yes to some extent - Q3","Yes definitely - Q3",null,null,"QOP","GREATER MANCHESTER ICB",null,"QOP","GREATER MANCHESTER ICB",null,"QM7","RY4","HERTFORDSHIRE COMMUNITY NHS TRUST",null,null,null,"RF4","HERTFORDSHIRE COMMUNITY NHS TRUST"]
[null,null,null,null,null,null,null,null,null,null,"No - Q3","Yes to some extent - Q3",null,null,"QOQ","HUMBER AND NORTH YORKSHIRE ICB",null,"QOQ","HUMBER AND NORTH YORKSHIRE ICB",null,"QMF","RF4","BARKING, HAVERING AND REDBRIDGE UNIVERSITY HOSPITALS NHS TRUST",null,null,null,"RFR","HOMERTON HEALTHCARE NHS FOUNDATION TRUST"]
[null,null,null,null,null,null,null,null,null,null,null,"No - Q3",null,null,"QOX","BATH AND NORTH EAST SOMERSET, SWINDON AND WILTSHIRE ICB",null,"QOX","BATH AND NORTH EAST SOMERSET, SWINDON AND WILTSHIRE ICB",null,"QMF","RWK","EAST LONDON NHS FOUNDATION TRUST",null,null,null,"RGT","IMPERIAL COLLEGE HEALTHCARE NHS TRUST"]
[null,null,null,null,null,null,null,null,null,null,null,"SMS - Q1",null,null,"QPM","NORTHAMPTONSHIRE ICB",null,"QPM","NORTHAMPTONSHIRE ICB",null,"QMF","RQX","HOMERTON HEALTHCARE NHS FOUNDATION TRUST",null,null,null,"RHQ","KING'S COLLEGE HOSPITAL NHS FOUNDATION TRUST"]
[null,null,null,null,null,null,null,null,null,null,null,"Smartphone - Q1",null,null,"QR1","GLOUCESTERSHIRE ICB",null,"QR1","GLOUCESTERSHIRE ICB",null,"QMF","Y05455","NELFT OOH",null,null,null,"RHW","KINGSTON HOSPITAL NHS FOUNDATION TRUST"]
[null,null,null,null,null,null,null,null,null,null,null,"Smartphone After - Q1",null,null,"QRL","HAMPSHIRE AND ISLE OF WIGHT ICB",null,"QRL","HAMPSHIRE AND ISLE OF WIGHT ICB",null,"QMM","RY3","NORFOLK COMMUNITY HEALTH AND CARE NHS TRUST",null,null,null,"RJ1","LANCASHIRE & SOUTH CUMBRIA NHS FOUNDATION TRUST"]
[null,null,null,null,null,null,null,null,null,null,null,"Paper - Q1",null,null,"QRV","NORTH WEST LONDON ICB",null,"QRV","NORTH WEST LONDON ICB",null,"QNC","RRE","MIDLANDS PARTNERSHIP NHS FOUNDATION TRUST",null,null,null,"RJ7","LEEDS COMMUNITY HEALTHCARE NHS TRUST"]
[null,null,null,null,null,null,null,null,null,null,null,"Paper After - Q1",null,null,"QSL","SOMERSET ICB",null,"QSL","SOMERSET ICB",null,"QNX","RXC","EAST SUSSEX HEALTHCARE NHS TRUST",null,null,null,"RJC","LINCOLNSHIRE COMMUNITY HEALTH SERVICES NHS TRUST"]
[null,null,null,null,null,null,null,null,null,null,null,"Telephone - Q1",null,null,"QT1","NOTTINGHAM AND NOTTINGHAMSHIRE ICB",null,"QT1","NOTTINGHAM AND NOTTINGHAMSHIRE ICB",null,"QNX","RDR","SUSSEX COMMUNITY NHS FOUNDATION TRUST",null,null,null,"RJL","LIVEWELL SOUTHWEST"]
[null,null,null,null,null,null,null,null,null,null,null,"Online - Q1",null,null,"QT6","CORNWALL AND THE ISLES OF SCILLY ICB",null,"QT6","CORNWALL AND THE ISLES OF SCILLY ICB",null,"QOC","R1D","SHROPSHIRE COMMUNITY HEALTH NHS TRUST",null,null,null,"RJN","LONDON NORTH WEST UNIVERSITY HEALTHCARE NHS TRUST"]
[null,null,null,null,null,null,null,null,null,null,null,"Other - Q1",null,null,"QU9","BUCKINGHAMSHIRE, OXFORDSHIRE AND BERKSHIRE WEST ICB",null,"QU9","BUCKINGHAMSHIRE, OXFORDSHIRE AND BERKSHIRE WEST ICB",null,"QOP","RMC","BOLTON NHS FOUNDATION TRUST",null,null,null,"RJZ","MANCHESTER UNIVERSITY NHS FOUNDATION TRUST"]
[null,null,null,null,null,null,null,null,null,null,null,"SMS - Q2",null,null,"QUA","BLACK COUNTRY ICB",null,"QUA","BLACK COUNTRY ICB",null,"QOP","R0A","MANCHESTER UNIVERSITY NHS FOUNDATION TRUST",null,null,null,"RKB","MERSEY CARE NHS FOUNDATION TRUST"]
[null,null,null,null,null,null,null,null,null,null,null,"Smartphone - Q2",null,null,"QUE","CAMBRIDGESHIRE AND PETERBOROUGH ICB",null,"QUE","CAMBRIDGESHIRE AND PETERBOROUGH ICB",null,"QOP","RWJ","STOCKPORT NHS FOUNDATION TRUST",null,null,null,"RL4","MID YORKSHIRE HOSPITALS NHS TRUST"]
[null,null,null,null,null,null,null,null,null,null,null,"Smartphone After - Q2",null,null,"QUY","BRISTOL, NORTH SOMERSET AND SOUTH GLOUCESTERSHIRE ICB",null,"QUY","BRISTOL, NORTH SOMERSET AND SOUTH GLOUCESTERSHIRE ICB",null,"QOP","RMP","TAMESIDE AND GLOSSOP INTEGRATED CARE NHS FOUNDATION TRUST",null,null,null,"RLT","MIDLANDS PARTNERSHIP NHS FOUNDATION TRUST"]
[null,null,null,null,null,null,null,null,null,null,null,"Paper - Q2",null,null,"QVV","DORSET ICB",null,"QVV","DORSET ICB",null,"QOP","RRF","WRIGHTINGTON, WIGAN AND LEIGH NHS FOUNDATION TRUST",null,null,null,"RMC","MILTON KEYNES UNIVERSITY HOSPITAL NHS FOUNDATION TRUST"]
[null,null,null,null,null,null,null,null,null,null,null,"Paper After - Q2",null,null,"QWE","SOUTH WEST LONDON ICB",null,"QWE","SOUTH WEST LONDON ICB",null,"QOQ","NNF","CITY HEALTH CARE PARTNERSHIP CIC",null,null,null,"RMP","NELFT OOH"]
[null,null,null,null,null,null,null,null,null,null,null,"Telephone - Q2",null,null,"QWO","WEST YORKSHIRE ICB",null,"QWO","WEST YORKSHIRE ICB",null,"QOQ","RJL","NORTHERN LINCOLNSHIRE AND GOOLE NHS FOUNDATION TRUST",null,null,null,"RNA","NORFOLK COMMUNITY HEALTH AND CARE NHS TRUST"]
[null,null,null,null,null,null,null,null,null,null,null,"Online - Q2",null,null,"QWU","COVENTRY AND WARWICKSHIRE ICB",null,"QWU","COVENTRY AND WARWICKSHIRE ICB",null,"QOQ","RCB","YORK AND SCARBOROUGH TEACHING HOSPITALS NHS FOUNDATION TRUST",null,null,null,"RNN","NORTH CUMBRIA INTEGRATED CARE NHS FOUNDATION TRUST"]
[null,null,null,null,null,null,null,null,null,null,null,"Other - Q2",null,null,"QXU","SURREY HEARTLANDS ICB",null,"QXU","SURREY HEARTLANDS ICB",null,"QOX","AXG","WILTSHIRE HEALTH & CARE",null,null,null,"RP1","NORTH TEES AND HARTLEPOOL NHS FOUNDATION TRUST"]
[null,null,null,null,null,null,null,null,null,null,null,"SMS - Q3",null,null,"QYG","CHESHIRE AND MERSEYSIDE ICB",null,"QYG","CHESHIRE AND MERSEYSIDE ICB",null,"QPM","RP1","NORTHAMPTONSHIRE HEALTHCARE NHS FOUNDATION TRUST",null,null,null,"RQX","NORTHAMPTONSHIRE HEALTHCARE NHS FOUNDATION TRUST"]
[null,null,null,null,null,null,null,null,null,null,null,"Smartphone - Q3",null,null,null,null,null,null,null,null,"QR1","RTQ","GLOUCESTERSHIRE HEALTH AND CARE NHS FOUNDATION TRUST",null,null,null,"RR7","NORTHERN LINCOLNSHIRE AND GOOLE NHS FOUNDATION TRUST"]
[null,null,null,null,null,null,null,null,null,null,null,"Smartphone After - Q3",null,null,null,null,null,null,null,null,"QRL","R1C","SOLENT NHS TRUST",null,null,null,"RRE","NORTHUMBRIA HEALTHCARE NHS FOUNDATION TRUST"]
[null,null,null,null,null,null,null,null,null,null,null,"Paper - Q3",null,null,null,null,null,null,null,null,"QRL","RW1","SOUTHERN HEALTH NHS FOUNDATION TRUST",null,null,null,"RRF","NOTTINGHAM CITYCARE PARTNERSHIP"]
[null,null,null,null,null,null,null,null,null,null,null,"Paper After - Q3",null,null,null,null,null,null,null,null,"QRV","RYJ","IMPERIAL COLLEGE HEALTHCARE NHS TRUST",null,null,null,"RT1","OXFORD UNIVERSITY HOSPITALS NHS FOUNDATION TRUST"]
[null,null,null,null,null,null,null,null,null,null,null,"Telephone - Q3",null,null,null,null,null,null,null,null,"QRV","R1K","LONDON NORTH WEST UNIVERSITY HEALTHCARE NHS TRUST",null,null,null,"RTD","PROVIDE"]
[null,null,null,null,null,null,null,null,null,null,null,"Online - Q3",null,null,null,null,null,null,null,null,"QT1","NR3","NOTTINGHAM CITYCARE PARTNERSHIP",null,null,null,"RTF","ROTHERHAM DONCASTER AND SOUTH HUMBER NHS FOUNDATION TRUST"]
[null,null,null,null,null,null,null,null,null,null,null,"Other - Q3",null,null,null,null,null,null,null,null,"QT6","REF","ROYAL CORNWALL HOSPITALS NHS TRUST",null,null,null,"RTH","ROYAL BERKSHIRE NHS FOUNDATION TRUST"]
[null,null,null,null,null,null,null,null,null,null,null,null,null,null,null,null,null,null,null,null,"QU9","RXQ","BUCKINGHAMSHIRE HEALTHCARE NHS TRUST",null,null,null,"RTQ","ROYAL CORNWALL HOSPITALS NHS TRUST"]
[null,null,null,null,null,null,null,null,null,null,null,null,null,null,null,null,null,null,null,null,"QU9","RTH","OXFORD UNIVERSITY HOSPITALS NHS FOUNDATION TRUST",null,null,null,"RTR","ROYAL SURREY COUNTY HOSPITAL NHS FOUNDATION TRUST"]
[null,null,null,null,null,null,null,null,null,null,null,null,null,null,null,null,null,null,null,null,"QU9","RHW","ROYAL BERKSHIRE NHS FOUNDATION TRUST",null,null,null,"RVR","SHEFFIELD TEACHING HOSPITALS NHS FOUNDATION TRUST"]
[null,null,null,null,null,null,null,null,null,null,null,null,null,null,null,null,null,null,null,null,"QUA","RNA","THE DUDLEY GROUP NHS FOUNDATION TRUST",null,null,null,"RVW","SHROPSHIRE COMMUNITY HEALTH NHS TRUST"]
[null,null,null,null,null,null,null,null,null,null,null,null,null,null,null,null,null,null,null,null,"QUA","RL4","THE ROYAL WOLVERHAMPTON NHS TRUST",null,null,null,"RW1","SOLENT NHS TRUST"]
[null,null,null,null,null,null,null,null,null,null,null,null,null,null,null,null,null,null,null,null,"QUA","RBK","WALSALL HEALTHCARE NHS TRUST",null,null,null,"RW4","SOUTH TEES HOSPITALS NHS FOUNDATION TRUST"]
[null,null,null,null,null,null,null,null,null,null,null,null,null,null,null,null,null,null,null,null,"QUE","RGT","CAMBRIDGE UNIVERSITY HOSPITALS NHS FOUNDATION TRUST",null,null,null,"RW5","SOUTH TYNESIDE AND SUNDERLAND NHS FOUNDATION TRUST"]
[null,null,null,null,null,null,null,null,null,null,null,null,null,null,null,null,null,null,null,null,"QUE","RT1","CAMBRIDGESHIRE AND PETERBOROUGH NHS FOUNDATION TRUST",null,null,null,"RWE","SOUTH WARWICKSHIRE UNIVERSITY NHS FOUNDATION TRUST"]
[null,null,null,null,null,null,null,null,null,null,null,null,null,null,null,null,null,null,null,null,"QVV","RDY","DORSET HEALTHCARE UNIVERSITY NHS FOUNDATION TRUST",null,null,null,"RWJ","SOUTHERN HEALTH NHS FOUNDATION TRUST"]
[null,null,null,null,null,null,null,null,null,null,null,null,null,null,null,null,null,null,null,null,"QWE","RVR","EPSOM AND ST HELIER UNIVERSITY HOSPITALS NHS TRUST",null,null,null,"RWK","ST GEORGE'S UNIVERSITY HOSPITALS NHS FOUNDATION TRUST"]
[null,null,null,null,null,null,null,null,null,null,null,null,null,null,null,null,null,null,null,null,"QWE","RAX","KINGSTON HOSPITAL NHS FOUNDATION TRUST",null,null,null,"RXC","STOCKPORT NHS FOUNDATION TRUST"]
[null,null,null,null,null,null,null,null,null,null,null,null,null,null,null,null,null,null,null,null,"QWE","RJ7","ST GEORGE'S UNIVERSITY HOSPITALS NHS FOUNDATION TRUST",null,null,null,"RXE","SUSSEX COMMUNITY NHS FOUNDATION TRUST"]
[null,null,null,null,null,null,null,null,null,null,null,null,null,null,null,null,null,null,null,null,"QWO","RCF","AIREDALE NHS FOUNDATION TRUST",null,null,null,"RXF","TAMESIDE AND GLOSSOP INTEGRATED CARE NHS FOUNDATION TRUST"]
[null,null,null,null,null,null,null,null,null,null,null,null,null,null,null,null,null,null,null,null,"QWO","RAE","BRADFORD TEACHING HOSPITALS NHS FOUNDATION TRUST",null,null,null,"RXP","THE DUDLEY GROUP NHS FOUNDATION TRUST"]
[null,null,null,null,null,null,null,null,null,null,null,null,null,null,null,null,null,null,null,null,"QWO","RY6","LEEDS COMMUNITY HEALTHCARE NHS TRUST",null,null,null,"RXQ","THE NEWCASTLE UPON TYNE HOSPITALS NHS FOUNDATION TRUST"]
[null,null,null,null,null,null,null,null,null,null,null,null,null,null,null,null,null,null,null,null,"QWO","RXF","MID YORKSHIRE HOSPITALS NHS TRUST",null,null,null,"RY3","THE ROTHERHAM NHS FOUNDATION TRUST"]
[null,null,null,null,null,null,null,null,null,null,null,null,null,null,null,null,null,null,null,null,"QWU","RLT","GEORGE ELIOT HOSPITAL NHS TRUST",null,null,null,"RY4","THE ROYAL WOLVERHAMPTON NHS TRUST"]
[null,null,null,null,null,null,null,null,null,null,null,null,null,null,null,null,null,null,null,null,"QWU","RJC","SOUTH WARWICKSHIRE UNIVERSITY NHS FOUNDATION TRUST",null,null,null,"RY5","UNIVERSITY HOSPITALS COVENTRY AND WARWICKSHIRE NHS TRUST"]
[null,null,null,null,null,null,null,null,null,null,null,null,null,null,null,null,null,null,null,null,"QWU","RKB","UNIVERSITY HOSPITALS COVENTRY AND WARWICKSHIRE NHS TRUST",null,null,null,"RY6","UNIVERSITY HOSPITALS OF LEICESTER NHS TRUST"]
[null,null,null,null,null,null,null,null,null,null,null,null,null,null,null,null,null,null,null,null,"QXU","NDJ","FIRST COMMUNITY HEALTH AND CARE CIC",null,null,null,"RY8","WALSALL HEALTHCARE NHS TRUST"]
[null,null,null,null,null,null,null,null,null,null,null,null,null,null,null,null,null,null,null,null,"QXU","RA2","ROYAL SURREY COUNTY HOSPITAL NHS FOUNDATION TRUST",null,null,null,"RYJ","WILTSHIRE HEALTH & CARE"]
[null,null,null,null,null,null,null,null,null,null,null,null,null,null,null,null,null,null,null,null,"QYG","RJN","EAST CHESHIRE NHS TRUST",null,null,null,"RYW","WRIGHTINGTON, WIGAN AND LEIGH NHS FOUNDATION TRUST"]
[null,null,null,null,null,null,null,null,null,null,null,null,null,null,null,null,null,null,null,null,"QYG","RW4","MERSEY CARE NHS FOUNDATION TRUST",null,null,null,"Y05455","YORK AND SCARBOROUGH TEACHING HOSPITALS NHS FOUNDATION TRUST"]